[Event "V. Korchnoi Memorial 2019"]
[Site "St. Petersburg"]
[Date "2019.08.14"]
[Round "1.2"]
[White "Nurgali, Nazerke"]
[Black "Chigaev, Maksim"]
[Result "0-1"]
[ECO "E69"]
[WhiteElo "2045"]
[BlackElo "2643"]
[Annotator "ChessBase"]
[PlyCount "109"]
[EventDate "2019.08.13"]
[EventType "swiss"]
[EventCountry "RUS"]
[SourceTitle "playchess.com"]
[Source "ChessBase"]
[SourceQuality "1"]
[TimeControl "5400+30"]

1. d4 {[%emt 0:00:00]} Nf6 {[%emt 0:00:00]} 2. c4 {[%emt 0:00:00]} g6 {[%emt 0:00:00]} 3. Nf3 {[%emt 0:00:00]} Bg7 {[%emt 0:00:00]} 4. g3 {[%emt 0:00:23]} O-O {[%emt 0:00:01]} 5. Bg2 {[%emt 0:00:22]} d6 {[%emt 0:00:10]} 6. Nc3 {[%emt 0:00:47]} Nbd7 {[%emt 0:00:10]} 7. O-O {[%emt 0:00:43]} e5 {[%emt 0:00:07]} 8. e4 {[%emt 0:00:16]} c6 {[%emt 0:02:10]} 9. h3 {[%emt 0:01:45]} Qb6 {[%emt 0:01:05]} 10. c5 {[%emt 0:02:10]} dxc5 {[%emt 0:00:09]} 11. dxe5 {[%emt 0:00:06]} Ne8 {[%emt 0:00:06]} 12. Bg5 {[%emt 0:01:10]} Nc7 {[%emt 0:04:25]} 13. Be7 {[%emt 0:04:55]} Re8 {[%emt 0:00:08]} 14. Bd6 {[%emt 0:00:10]} Na6 {[%emt 0:09:31]} 15. Rc1 {[%emt 0:13:37]} Nxe5 {[%emt 0:02:07]} 16. Nxe5 {[%emt 0:03:05]} Bxe5 {[%emt 0:00:08]} 17. Bxe5 {[%emt 0:07:21]} Rxe5 {[%emt 0:00:09]} 18. f4 {[%emt 0:00:08]} Re8 {[%emt 0:00:07]} 19. f5 {[%emt 0:01:07]} c4+ {[%emt 0:04:39]} 20. Kh2 {[%emt 0:01:26]} Nc5 {[%emt 0:00:11]} 21. Na4 {[%emt 0:10:05]} Nxa4 {[%emt 0:00:40]} 22. Qxa4 {[%emt 0:00:04]} Qxb2 {[%emt 0:02:38]} 23. Qxc4 {[%emt 0:00:30]} gxf5 {[%emt 0:00:28]} 24. Rb1 {[%emt 0:10:56]} Qf6 {[%emt 0:03:14]} 25. exf5 {[%emt 0:00:40]} Rd8 {[%emt 1:10:07]} 26. Qf4 {[%emt 0:06:17]} Rd4 {[%emt 0:00:00]} 27. Qe3 {[%emt 0:02:11]} Kg7 {[%emt 0:00:00]} 28. Rf4 {[%emt 0:01:24]} Rxf4 {[%emt 0:00:00]} 29. Qxf4 {[%emt 0:00:44]} Qxf5 {[%emt 0:00:00]} 30. Qc1 {[%emt 0:00:33]} a5 {[%emt 0:00:00]} 31. Rb3 {[%emt 0:01:27]} Be6 {[%emt 0:00:00]} 32. Rf3 {[%emt 0:02:11]} Qe5 {[%emt 0:00:00]} 33. Re3 {[%emt 0:00:27]} Qg5 {[%emt 0:00:00]} 34. h4 {[%emt 0:02:24]} Qh6 {[%emt 0:00:00]} 35. Qb2+ {[%emt 0:11:24]} Qf6 {[%emt 0:00:00]} 36. Qxb7 {[%emt 0:00:16]} Rd8 {[%emt 0:00:00]} 37. Rf3 {[%emt 0:01:19]} Qd4 {[%emt 0:00:00]} 38. Qe7 {[%emt 0:02:04]} h6 {[%emt 0:00:00]} 39. Rf4 {[%emt 0:00:50]} Rd7 {[%emt 0:00:00]} 40. Qa3 {[%emt 0:00:49]} Qd2 {[%emt 0:00:00]} 41. Qc5 {[%emt 0:02:16]} Bd5 {[%emt 0:00:00]} 42. Rf2 {[%emt 0:00:55]} Qb4 {[%emt 0:00:00]} 43. Qc2 {[%emt 0:03:57]} Bxg2 {[%emt 0:00:00]} 44. Kxg2 {[%emt 0:00:03]} c5 {[%emt 0:00:00]} 45. Qf5 {[%emt 0:01:59]} Qd4 {[%emt 0:00:00]} 46. Rf4 {[%emt 0:01:01]} Qd5+ {[%emt 0:00:00]} 47. Qxd5 {[%emt 0:01:32]} Rxd5 {[%emt 0:00:00]} 48. Ra4 {[%emt 0:00:04]} Kf6 {[%emt 0:00:00]} 49. Rxa5 {[%emt 0:00:09]} Ke5 {[%emt 0:00:00]} 50. Ra4 {[%emt 0:00:44]} Rd4 {[%emt 0:00:00]} 51. Rxd4 {[%emt 0:01:54]} Kxd4 {[%emt 0:00:00]} 52. Kf2 {[%emt 0:00:03]} Kc3 {[%emt 0:00:00]} 53. Ke3 {[%emt 0:01:17]} c4 {[%emt 0:00:00]} 54. a4 {[%emt 0:02:16]} Kb2 {[%emt 0:00:00]} 55. Kd4 {[%emt 0:03:14]} 0-1

[Event "V. Korchnoi Memorial 2019"]
[Site "St. Petersburg"]
[Date "2019.08.14"]
[Round "1.3"]
[White "Zvjaginsev, Vadim"]
[Black "Zhukov, Maksim"]
[Result "1-0"]
[ECO "B12"]
[WhiteElo "2639"]
[BlackElo "2042"]
[Annotator "ChessBase"]
[PlyCount "43"]
[EventDate "2019.08.13"]
[EventType "swiss"]
[EventCountry "RUS"]
[SourceTitle "playchess.com"]
[Source "ChessBase"]
[SourceQuality "1"]
[TimeControl "5400+30"]

1. e4 {[%emt 0:00:56]} c6 {[%emt 0:00:00]} 2. d4 {[%emt 0:00:44]} d5 {[%emt 0:00:00]} 3. e5 {[%emt 0:01:01]} c5 {[%emt 0:00:00]} 4. dxc5 {[%emt 0:00:37]} Nc6 {[%emt 0:00:00]} 5. f4 {[%emt 0:00:39]} e6 {[%emt 0:00:03]} 6. Be3 {[%emt 0:00:11]} d4 {[%emt 0:01:22]} 7. Bf2 {[%emt 0:00:37]} Bxc5 {[%emt 0:02:02]} 8. Nd2 {[%emt 0:00:26]} Qb6 {[%emt 0:12:44]} 9. Bd3 {[%emt 0:05:16]} Nge7 {[%emt 0:05:21]} 10. a3 {[%emt 0:03:40]} Nd5 {[%emt 0:06:53]} 11. b4 {[%emt 0:01:45]} Be7 {[%emt 0:09:24]} 12. Qf3 {[%emt 0:01:42]} Nc3 {[%emt 0:14:43]} 13. Ne2 {[%emt 0:04:13]} Nxe2 {[%emt 0:00:19]} 14. Qxe2 {[%emt 0:00:40]} a6 {[%emt 0:03:41]} 15. c4 {[%emt 0:01:38]} O-O {[%emt 0:02:11]} 16. O-O {[%emt 0:07:29]} f5 {[%emt 0:01:40]} 17. exf6 {[%emt 0:01:44]} Bxf6 {[%emt 0:00:40]} 18. c5 {[%emt 0:01:15]} Qc7 {[%emt 0:01:09]} 19. Nc4 {[%emt 0:00:21]} Bd7 {[%emt 0:14:46]} 20. Bg3 {[%emt 0:09:35]} Rae8 {[%emt 0:01:36]} 21. Qc2 {[%emt 0:01:21]} h6 {[%emt 0:01:16]} 22. Qe2 {[%emt 0:00:16]} 1-0

[Event "V. Korchnoi Memorial 2019"]
[Site "St. Petersburg"]
[Date "2019.08.14"]
[Round "1.4"]
[White "Vunder, Andrey"]
[Black "Gareyev, Timur"]
[Result "0-1"]
[ECO "A53"]
[WhiteElo "2039"]
[BlackElo "2600"]
[Annotator "ChessBase"]
[PlyCount "52"]
[EventDate "2019.08.13"]
[EventType "swiss"]
[EventCountry "RUS"]
[SourceTitle "playchess.com"]
[Source "ChessBase"]
[SourceQuality "1"]
[TimeControl "5400+30"]

1. d4 {[%emt 0:00:00]} Nf6 {[%emt 0:08:32]} 2. Nf3 {[%emt 0:00:00]} d6 {[%emt 0:00:45]} 3. c4 {[%emt 0:00:07]} Bf5 {[%emt 0:00:37]} 4. Nc3 {[%emt 0:00:14]} c6 {[%emt 0:00:06]} 5. e3 {[%emt 0:00:30]} Nbd7 {[%emt 0:00:12]} 6. Bd3 {[%emt 0:00:18]} Bg6 {[%emt 0:00:07]} 7. O-O {[%emt 0:00:27]} e5 {[%emt 0:00:03]} 8. Bxg6 {[%emt 0:00:39]} hxg6 {[%emt 0:00:03]} 9. Qc2 {[%emt 0:00:19]} Qc7 {[%emt 0:01:49]} 10. b4 {[%emt 0:01:13]} d5 {[%emt 0:01:17]} 11. dxe5 {[%emt 0:03:00]} Nxe5 {[%emt 0:03:25]} 12. Nxe5 {[%emt 0:00:19]} Qxe5 {[%emt 0:00:02]} 13. h3 {[%emt 0:01:27]} Bxb4 {[%emt 0:00:10]} 14. Nxd5 {[%emt 0:04:37]} Nxd5 {[%emt 0:01:22]} 15. cxd5 {[%emt 0:00:08]} Qxa1 {[%emt 0:00:48]} 16. Qe4+ {[%emt 0:03:10]} Be7 {[%emt 0:00:10]} 17. dxc6 {[%emt 0:13:27]} Qc3 {[%emt 0:00:58]} 18. cxb7 {[%emt 0:00:29]} Rd8 {[%emt 0:00:21]} 19. Bb2 {[%emt 0:03:48]} Qb4 {[%emt 0:04:53]} 20. Qc6+ {[%emt 0:03:16]} Kf8 {[%emt 0:04:00]} 21. Be5 {[%emt 0:00:33]} Rh5 {[%emt 0:00:29]} 22. b8=Q {[%emt 0:02:51]} Rxb8 {[%emt 0:00:19]} 23. Bxb8 {[%emt 0:00:07]} Qxb8 {[%emt 0:00:54]} 24. Rc1 {[%emt 0:00:15]} Kg8 {[%emt 0:00:14]} 25. Qd7 {[%emt 0:00:40]} Rc5 {[%emt 0:00:11]} 26. Rd1 {[%emt 0:00:47]} Bf6 {[%emt 0:00:22]} 0-1

[Event "V. Korchnoi Memorial 2019"]
[Site "St. Petersburg"]
[Date "2019.08.14"]
[Round "1.5"]
[White "Goganov, Aleksey"]
[Black "Gorbatenko, Alexander"]
[Result "1-0"]
[ECO "D37"]
[WhiteElo "2564"]
[BlackElo "2038"]
[Annotator "ChessBase"]
[PlyCount "87"]
[EventDate "2019.08.13"]
[EventType "swiss"]
[EventCountry "RUS"]
[SourceTitle "playchess.com"]
[Source "ChessBase"]
[SourceQuality "1"]
[TimeControl "5400+30"]

1. Nf3 {[%emt 0:00:00]} Nf6 {[%emt 0:06:45]} 2. c4 {[%emt 0:00:06]} e6 {[%emt 0:00:17]} 3. d4 {[%emt 0:00:30]} d5 {[%emt 0:00:16]} 4. Nc3 {[%emt 0:00:35]} a6 {[%emt 0:02:32]} 5. cxd5 {[%emt 0:00:45]} exd5 {[%emt 0:00:12]} 6. Bg5 {[%emt 0:01:00]} Be6 {[%emt 0:00:46]} 7. e3 {[%emt 0:00:15]} Nbd7 {[%emt 0:00:27]} 8. h3 {[%emt 0:00:42]} h6 {[%emt 0:07:52]} 9. Bf4 {[%emt 0:00:35]} Be7 {[%emt 0:04:27]} 10. Qc2 {[%emt 0:04:50]} Rc8 {[%emt 0:01:50]} 11. Be2 {[%emt 0:01:30]} c5 {[%emt 0:06:07]} 12. O-O {[%emt 0:00:57]} O-O {[%emt 0:00:08]} 13. a4 {[%emt 0:08:20]} Qa5 {[%emt 0:05:17]} 14. Rfd1 {[%emt 0:01:04]} Rfd8 {[%emt 0:02:16]} 15. dxc5 {[%emt 0:00:43]} Nxc5 {[%emt 0:08:12]} 16. Nd4 {[%emt 0:02:41]} Nfe4 {[%emt 0:05:19]} 17. Nxe4 {[%emt 0:06:22]} Nxe4 {[%emt 0:01:40]} 18. Qd3 {[%emt 0:02:30]} Bf6 {[%emt 0:03:41]} 19. Bf3 {[%emt 0:01:00]} Nc5 {[%emt 0:02:02]} 20. Qa3 {[%emt 0:01:15]} Qb6 {[%emt 0:05:49]} 21. a5 {[%emt 0:00:14]} Qa7 {[%emt 0:00:04]} 22. Rac1 {[%emt 0:02:36]} b5 {[%emt 0:04:01]} 23. b4 {[%emt 0:01:19]} Bxd4 {[%emt 0:00:35]} 24. Rxd4 {[%emt 0:00:09]} Ne4 {[%emt 0:01:13]} 25. Bxe4 {[%emt 0:04:14]} dxe4 {[%emt 0:00:37]} 26. Rxe4 {[%emt 0:03:21]} Bc4 {[%emt 0:07:15]} 27. Qb2 {[%emt 0:00:59]} Rd5 {[%emt 0:00:42]} 28. Bg3 {[%emt 0:04:00]} Rcd8 {[%emt 0:02:36]} 29. Kh2 {[%emt 0:01:01]} Kh7 {[%emt 0:01:27]} 30. Rf4 {[%emt 0:02:30]} Qe7 {[%emt 0:01:13]} 31. e4 {[%emt 0:07:13]} Rd2 {[%emt 0:01:00]} 32. Rc2 {[%emt 0:00:33]} Rxc2 {[%emt 0:03:36]} 33. Qxc2 {[%emt 0:00:04]} Qxb4 {[%emt 0:00:09]} 34. e5+ {[%emt 0:00:09]} Kg8 {[%emt 0:00:08]} 35. e6 {[%emt 0:00:58]} fxe6 {[%emt 0:06:35]} 36. Rg4 {[%emt 0:03:28]} Qf8 {[%emt 0:03:53]} 37. Qg6 {[%emt 0:00:37]} Rd7 {[%emt 0:04:25]} 38. Qxh6 {[%emt 0:01:07]} Bd5 {[%emt 0:01:22]} 39. Qh5 {[%emt 0:00:39]} Qf7 {[%emt 0:00:29]} 40. Qe5 {[%emt 0:00:43]} Rb7 {[%emt 0:01:01]} 41. Rf4 {[%emt 0:01:24]} Qc7 {[%emt 0:00:52]} 42. Qh5 {[%emt 0:00:35]} Qc6 {[%emt 0:01:02]} 43. Rh4 {[%emt 0:00:25]} Be4 {[%emt 0:00:40]} 44. Be5 {[%emt 0:01:15]} 1-0

[Event "V. Korchnoi Memorial 2019"]
[Site "St. Petersburg"]
[Date "2019.08.14"]
[Round "1.6"]
[White "Sokolov, Ilia"]
[Black "Stupak, Kirill"]
[Result "0-1"]
[ECO "A40"]
[WhiteElo "2034"]
[BlackElo "2561"]
[Annotator "ChessBase"]
[PlyCount "96"]
[EventDate "2019.08.13"]
[EventType "swiss"]
[EventCountry "RUS"]
[SourceTitle "playchess.com"]
[Source "ChessBase"]
[SourceQuality "1"]
[TimeControl "5400+30"]

1. Nf3 {[%emt 1:30:30]} g6 {[%emt 1:30:30]} 2. g3 {[%emt 0:00:30]} Bg7 {[%emt 0:00:30]} 3. d4 {[%emt 0:00:30]} c5 {[%emt 0:00:30]} 4. c3 {[%emt 0:00:30]} Qa5 {[%emt 0:00:30]} 5. Nbd2 {[%emt 0:00:30]} cxd4 {[%emt 0:00:30]} 6. Nb3 {[%emt 0:00:30]} Qb6 {[%emt 0:00:30]} 7. cxd4 {[%emt 0:00:30]} Nf6 {[%emt 0:00:30]} 8. Bg2 {[%emt 0:00:30]} O-O {[%emt 0:00:30]} 9. O-O {[%emt 0:00:30]} d5 {[%emt 0:00:30]} 10. Ne5 {[%emt 0:00:30]} Nc6 {[%emt 0:00:30]} 11. Bf4 {[%emt 0:00:30]} Bf5 {[%emt 0:00:30]} 12. Nxc6 {[%emt 0:00:30]} bxc6 {[%emt 0:00:30]} 13. Be5 {[%emt 0:00:30]} Bh6 {[%emt 0:00:30]} 14. Bxf6 {[%emt 0:00:30]} exf6 {[%emt 0:00:30]} 15. e3 a5 {[%emt 0:00:30]} 16. Rc1 a4 {[%emt 0:00:30]} 17. Nc5 {[%emt 0:01:30]} Qxb2 {[%emt 0:00:30]} 18. Nxa4 {[%emt 0:00:30]} Qb4 {[%emt 0:00:30]} 19. Nc3 {[%emt 0:00:30]} Ra3 {[%emt 0:00:30]} 20. Nb1 {[%emt 0:00:30]} Ra6 {[%emt 0:00:30]} 21. Rc5 {[%emt 0:00:30]} Rb8 {[%emt 0:00:30]} 22. Qe2 {[%emt 0:00:30]} Rba8 {[%emt 0:00:30]} 23. a3 {[%emt 0:00:30]} Qb7 {[%emt 0:00:30]} 24. e4 {[%emt 0:00:30]} Re8 {[%emt 0:00:30]} 25. f3 Rb6 {[%emt 0:00:30]} 26. Qd3 {[%emt 0:01:00]} Be6 {[%emt 0:00:30]} 27. f4 {[%emt 0:00:30]} dxe4 {[%emt 0:00:30]} 28. Bxe4 {[%emt 0:00:30]} f5 {[%emt 0:00:30]} 29. Bf3 {[%emt 0:00:30]} Bf8 {[%emt 0:00:30]} 30. Rc3 {[%emt 0:00:30]} Rd8 {[%emt 0:00:30]} 31. Rfc1 {[%emt 0:00:30]} Rd6 {[%emt 0:00:30]} 32. Nd2 {[%emt 0:00:30]} Bg7 {[%emt 0:00:30]} 33. Nc4 Rxd4 {[%emt 0:00:30]} 34. Qe2 {[%emt 0:01:00]} Rb3 {[%emt 0:00:30]} 35. Ne5 {[%emt 0:00:30]} Rxc3 {[%emt 0:00:30]} 36. Rxc3 {[%emt 0:00:30]} Bxe5 {[%emt 0:00:30]} 37. fxe5 {[%emt 0:00:30]} Qb6 {[%emt 0:00:30]} 38. Kg2 {[%emt 0:00:30]} c5 39. Rc2 {[%emt 0:00:30]} c4 {[%emt 0:01:00]} 40. Rb2 {[%emt 0:00:30]} Qd8 {[%emt 0:00:30]} 41. Qe3 {[%emt 0:00:30]} Kg7 {[%emt 0:00:30]} 42. Rc2 {[%emt 0:00:30]} h5 {[%emt 0:00:30]} 43. Be2 {[%emt 0:00:30]} h4 {[%emt 0:00:30]} 44. Kf2 {[%emt 0:00:30]} Re4 {[%emt 0:00:30]} 45. Qc5 {[%emt 0:00:30]} hxg3+ {[%emt 0:00:30]} 46. hxg3 f4 47. Bf3 {[%emt 0:01:00]} fxg3+ {[%emt 0:01:00]} 48. Kg2 {[%emt 0:00:30]} Qh4 {[%emt 0:00:30]} 0-1

[Event "V. Korchnoi Memorial 2019"]
[Site "St. Petersburg"]
[Date "2019.08.14"]
[Round "1.7"]
[White "Vorobiov, Evgeny E."]
[Black "Svidinsky, Dmitry"]
[Result "1-0"]
[ECO "E07"]
[WhiteElo "2560"]
[BlackElo "2022"]
[Annotator "ChessBase"]
[PlyCount "83"]
[EventDate "2019.08.13"]
[EventType "swiss"]
[EventCountry "RUS"]
[SourceTitle "playchess.com"]
[Source "ChessBase"]
[SourceQuality "1"]
[TimeControl "5400+30"]

1. d4 {[%emt 0:00:00]} d5 {[%emt 0:00:00]} 2. c4 {[%emt 0:00:00]} e6 {[%emt 0:00:13]} 3. Nf3 {[%emt 0:00:05]} Nf6 {[%emt 0:00:08]} 4. g3 {[%emt 0:00:10]} Be7 {[%emt 0:00:35]} 5. Bg2 {[%emt 0:00:09]} O-O {[%emt 0:00:06]} 6. Nc3 {[%emt 0:00:03]} c6 {[%emt 0:04:24]} 7. O-O {[%emt 0:00:42]} Nbd7 {[%emt 0:02:22]} 8. Qc2 {[%emt 0:05:13]} b6 {[%emt 0:01:53]} 9. e4 {[%emt 0:01:04]} Ba6 {[%emt 0:02:04]} 10. b3 {[%emt 0:05:55]} dxc4 {[%emt 0:01:40]} 11. Rd1 {[%emt 0:00:18]} cxb3 {[%emt 0:02:16]} 12. axb3 {[%emt 0:00:04]} Bb7 {[%emt 0:00:36]} 13. h4 {[%emt 0:00:27]} h6 {[%emt 0:02:58]} 14. Bf4 {[%emt 0:02:38]} Re8 {[%emt 0:04:20]} 15. Ne5 {[%emt 0:07:31]} Nxe5 {[%emt 0:06:07]} 16. dxe5 {[%emt 0:04:46]} Nd7 {[%emt 0:00:11]} 17. Rd2 {[%emt 0:00:14]} Qc8 {[%emt 0:03:13]} 18. Rad1 {[%emt 0:00:45]} Rd8 {[%emt 0:03:19]} 19. h5 {[%emt 0:01:57]} Nf8 {[%emt 0:03:17]} 20. Rd6 {[%emt 0:01:43]} Bxd6 {[%emt 0:01:50]} 21. exd6 {[%emt 0:00:05]} e5 {[%emt 0:02:50]} 22. Bxe5 {[%emt 0:00:34]} Qg4 {[%emt 0:01:32]} 23. Bf4 {[%emt 0:04:15]} Qxh5 {[%emt 0:36:20]} 24. Be3 {[%emt 0:07:01]} Qg6 {[%emt 0:03:42]} 25. Qd2 {[%emt 0:01:38]} Nd7 {[%emt 0:00:42]} 26. Bf4 {[%emt 0:06:31]} Qe6 {[%emt 0:01:49]} 27. b4 {[%emt 0:01:47]} a5 {[%emt 0:01:52]} 28. b5 {[%emt 0:01:26]} cxb5 {[%emt 0:05:02]} 29. Nxb5 {[%emt 0:01:51]} Qc4 {[%emt 0:04:51]} 30. Nd4 {[%emt 0:04:55]} Rac8 {[%emt 0:00:52]} 31. Qe3 {[%emt 0:16:41]} Qc3 {[%emt 0:02:39]} 32. Qe2 {[%emt 0:00:16]} Nc5 {[%emt 0:00:55]} 33. Nf5 {[%emt 0:02:35]} Ne6 {[%emt 0:00:44]} 34. Be3 {[%emt 0:01:11]} Qf6 {[%emt 0:01:01]} 35. Bxb6 {[%emt 0:00:46]} a4 {[%emt 0:00:34]} 36. Ne7+ {[%emt 0:01:05]} Kh8 {[%emt 0:00:06]} 37. e5 {[%emt 0:00:19]} Qg5 {[%emt 0:00:25]} 38. Bxb7 {[%emt 0:00:49]} Nf4 {[%emt 0:00:42]} 39. Qf3 {[%emt 0:00:32]} Nh3+ {[%emt 0:00:36]} 40. Kg2 {[%emt 0:00:30]} Rc2 {[%emt 0:00:26]} 41. Kxh3 {[%emt 0:00:58]} Rb8 {[%emt 0:00:23]} 42. Qxf7 {[%emt 0:00:51]} 1-0

[Event "V. Korchnoi Memorial 2019"]
[Site "St. Petersburg"]
[Date "2019.08.14"]
[Round "1.8"]
[White "Lazhevskaya, Zhanni"]
[Black "Lintchevski, Daniil"]
[Result "0-1"]
[ECO "B11"]
[WhiteElo "2021"]
[BlackElo "2538"]
[Annotator "ChessBase"]
[PlyCount "72"]
[EventDate "2019.08.13"]
[EventType "swiss"]
[EventCountry "RUS"]
[SourceTitle "playchess.com"]
[Source "ChessBase"]
[SourceQuality "1"]
[TimeControl "5400+30"]

1. e4 {[%emt 0:00:00]} c6 {[%emt 0:00:00]} 2. Nc3 {[%emt 0:00:13]} d5 {[%emt 0:00:08]} 3. Nf3 {[%emt 0:00:06]} Bg4 {[%emt 0:00:06]} 4. h3 {[%emt 0:00:37]} Bh5 {[%emt 0:00:05]} 5. exd5 {[%emt 0:00:44]} cxd5 {[%emt 0:00:07]} 6. Bb5+ {[%emt 0:00:48]} Nc6 {[%emt 0:00:05]} 7. g4 {[%emt 0:00:44]} Bg6 {[%emt 0:00:08]} 8. Ne5 {[%emt 0:00:40]} Rc8 {[%emt 0:00:05]} 9. d4 {[%emt 0:00:59]} e6 {[%emt 0:00:23]} 10. h4 {[%emt 0:04:31]} f6 {[%emt 0:00:35]} 11. Nxg6 {[%emt 0:00:37]} hxg6 {[%emt 0:00:08]} 12. Qd3 {[%emt 0:00:51]} Kf7 {[%emt 0:00:17]} 13. Bxc6 {[%emt 0:00:06]} Rxc6 {[%emt 0:00:05]} 14. Bd2 {[%emt 0:02:31]} Bb4 {[%emt 0:03:20]} 15. Ne2 {[%emt 0:28:37]} Qa5 {[%emt 0:02:22]} 16. a3 {[%emt 0:07:18]} Bxd2+ {[%emt 0:01:26]} 17. Qxd2 {[%emt 0:00:04]} Qxd2+ {[%emt 0:00:17]} 18. Kxd2 {[%emt 0:00:05]} Ne7 {[%emt 0:00:07]} 19. f4 {[%emt 0:06:30]} Nc8 {[%emt 0:00:27]} 20. b3 {[%emt 0:10:28]} Nd6 {[%emt 0:00:40]} 21. Rh2 {[%emt 0:06:14]} Rhc8 {[%emt 0:05:52]} 22. Rc1 {[%emt 0:01:40]} Ne4+ {[%emt 0:00:26]} 23. Kd3 {[%emt 0:01:48]} Nc3 {[%emt 0:00:06]} 24. f5 {[%emt 0:11:57]} gxf5 {[%emt 0:01:21]} 25. gxf5 {[%emt 0:00:29]} exf5 {[%emt 0:00:09]} 26. Ke3 {[%emt 0:07:42]} Ne4 {[%emt 0:03:58]} 27. c4 {[%emt 0:05:09]} dxc4 {[%emt 0:00:04]} 28. d5 {[%emt 0:00:05]} R6c7 {[%emt 0:00:01]} 29. bxc4 {[%emt 0:00:13]} Rxc4 {[%emt 0:00:05]} 30. Rxc4 {[%emt 0:00:04]} Rxc4 {[%emt 0:00:03]} 31. Nd4 {[%emt 0:00:29]} Rc3+ {[%emt 0:01:16]} 32. Kf4 {[%emt 0:00:36]} Nd6 {[%emt 0:00:02]} 33. Nc2 {[%emt 0:02:29]} g6 {[%emt 0:01:48]} 34. Re2 {[%emt 0:00:47]} Rc4+ {[%emt 0:00:21]} 35. Kg3 {[%emt 0:00:17]} f4+ {[%emt 0:00:14]} 36. Kf3 {[%emt 0:00:23]} Nf5 {[%emt 0:00:05]} 0-1

[Event "V. Korchnoi Memorial 2019"]
[Site "St. Petersburg"]
[Date "2019.08.14"]
[Round "1.9"]
[White "Sorokin, Aleksey"]
[Black "Sairanov, Talgat"]
[Result "1-0"]
[ECO "E94"]
[WhiteElo "2537"]
[BlackElo "2021"]
[Annotator "ChessBase"]
[PlyCount "69"]
[EventDate "2019.08.13"]
[EventType "swiss"]
[EventCountry "RUS"]
[SourceTitle "playchess.com"]
[Source "ChessBase"]
[SourceQuality "1"]
[TimeControl "5400+30"]

1. d4 {[%emt 0:00:00]} Nf6 {[%emt 0:00:00]} 2. c4 {[%emt 0:00:00]} g6 {[%emt 0:00:00]} 3. Nc3 {[%emt 0:00:01]} Bg7 {[%emt 0:00:01]} 4. e4 {[%emt 0:00:21]} d6 {[%emt 0:00:08]} 5. Nf3 {[%emt 0:01:14]} O-O {[%emt 0:00:18]} 6. Be2 {[%emt 0:01:19]} e5 {[%emt 0:01:12]} 7. O-O {[%emt 0:00:19]} exd4 {[%emt 0:03:07]} 8. Nxd4 {[%emt 0:00:10]} Re8 {[%emt 0:00:07]} 9. f3 {[%emt 0:00:20]} c6 {[%emt 0:00:30]} 10. Kh1 {[%emt 0:02:50]} d5 {[%emt 0:18:24]} 11. cxd5 {[%emt 0:03:03]} cxd5 {[%emt 0:00:09]} 12. Bg5 {[%emt 0:02:41]} Nc6 {[%emt 0:06:01]} 13. Bb5 {[%emt 0:02:52]} Qb6 {[%emt 0:04:36]} 14. Nxc6 {[%emt 0:03:01]} bxc6 {[%emt 0:00:19]} 15. Bxf6 {[%emt 0:00:27]} Bxf6 {[%emt 0:03:01]} 16. Nxd5 {[%emt 0:00:11]} cxd5 {[%emt 0:00:34]} 17. Bxe8 {[%emt 0:00:15]} Bb7 {[%emt 0:04:06]} 18. Qa4 {[%emt 0:01:04]} Rd8 {[%emt 0:09:00]} 19. Rad1 {[%emt 0:03:19]} Qe6 {[%emt 0:05:08]} 20. Qxa7 {[%emt 0:01:53]} Qa6 {[%emt 0:01:10]} 21. Qxa6 {[%emt 0:13:41]} Bxa6 {[%emt 0:00:08]} 22. Rfe1 {[%emt 0:04:46]} Rxe8 {[%emt 0:01:25]} 23. exd5 {[%emt 0:00:24]} Rd8 {[%emt 0:06:39]} 24. b3 {[%emt 0:01:41]} Rd6 {[%emt 0:01:12]} 25. Re8+ {[%emt 0:01:09]} Kg7 {[%emt 0:02:03]} 26. a4 {[%emt 0:00:14]} Bc3 {[%emt 0:04:42]} 27. h4 {[%emt 0:01:20]} Kf6 {[%emt 0:01:59]} 28. Rc1 {[%emt 0:02:43]} Bb4 {[%emt 0:01:55]} 29. Rb8 {[%emt 0:01:25]} Ba3 {[%emt 0:03:46]} 30. Rc6 {[%emt 0:00:27]} Ke5 {[%emt 0:10:33]} 31. b4 {[%emt 0:00:29]} Rxc6 {[%emt 0:02:24]} 32. dxc6 {[%emt 0:00:20]} Kd6 {[%emt 0:00:07]} 33. b5 {[%emt 0:00:15]} Kc7 {[%emt 0:00:09]} 34. Ra8 {[%emt 0:00:10]} Bc8 {[%emt 0:00:08]} 35. b6+ {[%emt 0:00:08]} 1-0

[Event "V. Korchnoi Memorial 2019"]
[Site "St. Petersburg"]
[Date "2019.08.14"]
[Round "1.10"]
[White "Kiseleva, Arina"]
[Black "Iljiushenok, Ilia"]
[Result "0-1"]
[ECO "A30"]
[WhiteElo "2018"]
[BlackElo "2533"]
[Annotator "ChessBase"]
[PlyCount "84"]
[EventDate "2019.08.13"]
[EventType "swiss"]
[EventCountry "RUS"]
[SourceTitle "playchess.com"]
[Source "ChessBase"]
[SourceQuality "1"]
[TimeControl "5400+30"]

1. Nf3 {[%emt 0:00:00]} Nf6 {[%emt 0:08:37]} 2. c4 {[%emt 0:00:00]} e6 {[%emt 0:00:59]} 3. d4 {[%emt 0:05:29]} c5 {[%emt 0:00:12]} 4. e3 {[%emt 0:01:31]} b6 {[%emt 0:01:58]} 5. Be2 {[%emt 0:01:17]} Bb7 {[%emt 0:01:09]} 6. O-O {[%emt 0:00:14]} Be7 {[%emt 0:03:47]} 7. b3 {[%emt 0:01:22]} O-O {[%emt 0:03:26]} 8. Bb2 {[%emt 0:00:14]} d6 {[%emt 0:00:57]} 9. Nbd2 {[%emt 0:01:44]} Nbd7 {[%emt 0:00:18]} 10. Rc1 {[%emt 0:04:57]} Rc8 {[%emt 0:01:30]} 11. dxc5 {[%emt 0:02:10]} bxc5 {[%emt 0:04:56]} 12. Qc2 {[%emt 0:08:19]} Rc7 {[%emt 0:02:42]} 13. Rfd1 {[%emt 0:05:44]} Qa8 {[%emt 0:00:40]} 14. Ne1 {[%emt 0:03:54]} Ne5 {[%emt 0:05:28]} 15. f3 {[%emt 0:06:32]} Re8 {[%emt 0:07:21]} 16. Nd3 {[%emt 0:02:46]} Ng6 {[%emt 0:08:25]} 17. Nf2 {[%emt 0:18:18]} Rcc8 {[%emt 0:11:24]} 18. Bxf6 {[%emt 0:02:35]} gxf6 {[%emt 0:00:18]} 19. Nde4 {[%emt 0:00:29]} Rcd8 {[%emt 0:00:15]} 20. Qc3 {[%emt 0:02:51]} Ne5 {[%emt 0:01:16]} 21. Ng3 {[%emt 0:03:52]} Kh8 {[%emt 0:02:50]} 22. f4 {[%emt 0:03:40]} Nd7 {[%emt 0:01:01]} 23. e4 {[%emt 0:02:00]} Rg8 {[%emt 0:03:30]} 24. Re1 {[%emt 0:09:14]} Rg7 {[%emt 0:05:01]} 25. Nh5 {[%emt 0:01:12]} Rg6 {[%emt 0:00:01]} 26. Bf3 {[%emt 0:01:14]} Rdg8 {[%emt 0:00:27]} 27. Kf1 {[%emt 0:01:55]} Qf8 {[%emt 0:10:59]} 28. h3 {[%emt 0:05:08]} Rh6 {[%emt 0:04:01]} 29. g4 {[%emt 0:01:50]} e5 {[%emt 0:07:16]} 30. f5 {[%emt 0:00:43]} Nb8 {[%emt 0:00:04]} 31. Nd1 {[%emt 0:01:37]} Nc6 {[%emt 0:00:15]} 32. Ne3 {[%emt 0:00:16]} Nd4 {[%emt 0:00:05]} 33. Nd5 {[%emt 0:00:14]} Bxd5 {[%emt 0:00:35]} 34. cxd5 {[%emt 0:00:38]} Rxh5 {[%emt 0:01:28]} 35. gxh5 {[%emt 0:00:06]} Rg3 {[%emt 0:00:04]} 36. Re3 {[%emt 0:00:04]} Qh6 {[%emt 0:00:24]} 37. Kf2 {[%emt 0:01:33]} Qg5 {[%emt 0:00:08]} 38. Bg4 {[%emt 0:02:37]} Qf4+ {[%emt 0:00:04]} 39. Rf3 {[%emt 0:00:09]} Nxf3 {[%emt 0:00:42]} 40. Bxf3 {[%emt 0:00:07]} Rxf3+ {[%emt 0:00:12]} 41. Qxf3 {[%emt 0:00:04]} Qxc1 {[%emt 0:00:05]} 42. Qe2 {[%emt 0:00:40]} Bf8 {[%emt 0:00:13]} 0-1